Cogmind - Beta 9.3 @@@ ROGUE MODE // 2019.12.17 @ 12:41:22 // Winter2019/RPGLIKE Player: Zinc Result: Destroyed by D-53 Grenadier with Mini Grenade Launcher Performance ------------- Evolutions (0) 0 Regions Visited (2) 400 Robots Destroyed (26) 130 Value Destroyed (498) 498 Prototype IDs (5) 100 Alien Tech Used (0) 0 Bonus (0) 0 TOTAL SCORE: 1128 Bonus ------- None Cogmind --------- Core Integrity 0/700 Matter 300/300 Energy 258/260 System Corruption 1% Temperature Cool (2) Movement Hovering (56) Location -10/Mines Parts ------- > --- POWER (1) -------- Light Nuclear Core > --- PROPULSION (2) --- Improved Hover Unit Improved Hover Unit > --- UTILITY (1) ------ Signal Interpreter > --- WEAPON (2) ------- EM Pulse Gun EM Shotgun > --- INVENTORY (2) ---- Particle Gun Beam Cannon Peak State ------------ > --- POWER ------------ Light Nuclear Core > --- PROPULSION ------- Improved Hover Unit Improved Hover Unit > --- UTILITY ---------- Signal Interpreter > --- WEAPON ----------- EM Shotgun Particle Gun > --- INVENTORY -------- Beam Cannon Light Assault Rifle [Rating: 12] Favorites ----------- Power Light Nuclear Core Engine Light Ion Engine Power Core Light Nuclear Core Propulsion Light Treads Treads Light Treads Leg Aluminum Leg Hover Unit Improved Hover Unit Utility Signal Interpreter Processor Signal Interpreter Weapon Assault Rifle Energy Gun EM Shotgun Ballistic Gun Assault Rifle Build | -11 -10 -10 ------- Run | Scr Mat Min Slots Evolved 2 | 2 . . Power . | . . . Propulsion 1 | 1 . . Utility . | . . . Weapon 1 | 1 . . Parts Attached 11 | 3 8 . Power 1 | . 1 . Engine . | . . . Core 1 | . 1 . Reactor . | . . . Propulsion 4 | 2 2 . Treads 2 | 2 . . Leg . | . . . Wheel . | . . . Hover 2 | . 2 . Flight . | . . . Utility 1 | . 1 . Device . | . . . Storage . | . . . Processor 1 | . 1 . Hackware . | . . . Protection . | . . . Artifact . | . . . Weapon 5 | 1 4 . Energy Gun 5 | 1 4 . Energy Cannon . | . . . Ballistic Gun . | . . . Ballistic Cannon . | . . . Launcher . | . . . Special Weapon . | . . . Impact Weapon . | . . . Slashing Weapon . | . . . Piercing Weapon . | . . . Special Melee Weapon . | . . . Unidentified Prototypes . | . . . Parts Lost . | . . . Power . | . . . Propulsion . | . . . Utility . | . . . Weapon . | . . . Highest Loss Streak . | . . . Average Slot Usage (%) 92 | . 91 100 Engine 4 | . 4 . Core 11 | . 11 16 Treads 22 | . 24 . Hover 10 | . 8 33 Processor 9 | . 8 16 Energy Gun 21 | . 20 33 Ballistic Gun 10 | . 12 . Naked Turns . | . . . Heaviest Build 11 | 7 11 10 Greatest Support 40 | 40 40 16 Greatest Overweight (x) 1 | . 1 . Average Overweight (x) . | . . . Largest Inventory Capacity 2 | 2 2 2 Average Capacity 2 | 2 2 2 Most Carried 2 | 1 2 2 Average Carried 1 | . 1 2 Final Capacity 2 | 2 2 2 Final Carried 2 | 1 2 2 Class Distribution -------------------- 100% | Mutant Dominant Class ---------------- Mutant | -10/Materials Mutant | -10/Mines Resources | -11 -10 -10 ----------- Run | Scr Mat Min Matter Collected 473 | 230 243 . Remotely . | . . . Salvage Created 836 | 97 739 . Parts 52 | 3 49 . Haulers Intercepted 2 | . 2 . Recyclers Shooed . | . . . Parts Field Recycled . | . . . Retrieved Matter . | . . . Parts Self-Destructed . | . . . Prevented . | . . . Kills | -11 -10 -10 ------- Run | Scr Mat Min Combat Hostiles Destroyed 14 | . 13 1 Guns 13 | . 12 1 AOE 1 | . 1 . Classes Destroyed 10 | 1 8 1 Worker 3 | . 3 . Builder 1 | . 1 . Tunneler 1 | . 1 . Hauler 2 | . 2 . Recycler 1 | 1 . . Operator 1 | . 1 . Watcher 3 | . 3 . Swarmer 3 | . 3 . Grunt 10 | . 10 . Assembled 1 | . . 1 Best Kill Streak 4 | 1 4 1 Combat Bots Only 3 | . 3 1 Max Kills in Single Turn 1 | 1 1 1 Gunslinging . | . . . Exploded 1 | . 1 . Melee . | . . . Uniques/NPCs Destroyed . | . . . Combat | -11 -10 -10 -------- Run | Scr Mat Min Damage Taken 974 | . 855 119 Core 797 | . 704 93 Absorbed by Shields . | . . . Redirected to Core 569 | . 483 86 Core Remaining (%) 100 | 100 . . Volleys Fired 78 | 4 68 6 Largest 2 | 2 2 2 Hottest 90 | 70 90 85 Shots Fired 155 | 8 135 12 Gun 155 | 8 135 12 Cannon . | . . . Launcher . | . . . Special . | . . . Kinetic 56 | 4 52 . Thermal 55 | 4 51 . Explosive . | . . . Electromagnetic 44 | . 32 12 Robot Hit Streak 15 | 6 15 7 Robot Miss Streak 5 | 1 5 3 Penetration Max . | . . . Secondary Targets . | . . . Shots Hit Robots 104 | 6 90 8 Core Hits 44 | 2 39 3 Critical Hits 1 | . 1 . Critical Kills 1 | . 1 . Critical Parts Destroyed . | . . . Melee Attacks . | . . . Impact . | . . . Slashing . | . . . Piercing . | . . . Sneak Attacks . | . . . Combat Hostiles . | . . . Follow-up Attacks . | . . . Damage Inflicted 1436 | 58 1289 89 Guns 1299 | 58 1152 89 Cannons . | . . . Explosions 134 | . 134 . Melee . | . . . Ramming 3 | . 3 . Kinetic 371 | 20 351 . Thermal 682 | 38 644 . Explosive . | . . . Electromagnetic 380 | . 291 89 Impact . | . . . Slashing . | . . . Piercing . | . . . Highest Corruption 1 | . 1 1 Average Corruption 1 | . 1 1 Corruption Purged . | . . . Effects 4 | . 2 2 Message Errors 3 | . 1 2 Targeting Errors 1 | . 1 . Overload Shots . | . . . Overflow Damage . | . . . Projectiles . | . . . Explosions . | . . . Melee . | . . . Knockbacks . | . . . Impact . | . . . Kinetic . | . . . Secondary . | . . . Self-Inflicted Damage 88 | . 88 . Shots 2 | . 2 . Rammed 1 | . 1 . Targets Rammed 2 | . 2 . Kicked . | . . . Crushed 1 | . 1 . Highest Temperature 11 | . 11 . Average Temperature 6 | . 6 . Received Heat Transfer 300 | . 300 . Siege Activations . | . . . Robots Corrupted . | . . . Combat Hostiles . | . . . Parts Fried 2 | . 2 . Impact Corruptions . | . . . Robots Melted . | . . . Combat Hostiles . | . . . Parts Melted 4 | . 4 . Heat Transferred 1580 | 111 1469 . Parts Sabotaged . | . . . Parts Stolen . | . . . Parts Stripped . | . . . Power Chain Reactions 2 | . 2 . Missiles Intercepted . | . . . Alert | -11 -10 -10 ------- Run | Scr Mat Min Peak Influence 287 | 5 287 70 Average Influence 121 | . 132 70 Maximum Alert Level 1 | . 1 . Low Security (%) 80 | 100 77 100 Level 1 19 | . 22 . Level 2 . | . . . Level 3 . | . . . Level 4 . | . . . Level 5 . | . . . High Security . | . . . Max Security . | . . . Squads Dispatched 3 | . 3 . Investigation 2 | . 2 . Extermination . | . . . Reinforcement 1 | . 1 . Assault . | . . . Garrison . | . . . Intercept . | . . . Construction Impeded . | . . . Haulers Reinforced . | . . . Stealth | -11 -10 -10 --------- Run | Scr Mat Min Distress Signals 1 | . 1 . Communications Jammed . | . . . Distress Signals . | . . . Times Spotted 30 | . 24 6 Peak Tracking Total 6 | . 6 5 Tactical Retreats 1 | . . 1 Traps | -11 -10 -10 ------- Run | Scr Mat Min Traps Triggered . | . . . Indirectly . | . . . Trap Hack Attempts . | . . . Triggered . | . . . Disarmed . | . . . Reprogrammed . | . . . Reused . | . . . Traps Extracted . | . . . Installed . | . . . Triggered . | . . . Machines | -11 -10 -10 ---------- Run | Scr Mat Min Machines Disabled . | . . . Max in Single Turn . | . . . Machines Sabotaged . | . . . Garrisons Compromised . | . . . Overloaded Fab Kills . | . . . Fab Network Shutdowns . | . . . Hacking | -11 -10 -10 --------- Run | Scr Mat Min Machines Accessed 8 | . 8 . Terminals 7 | . 7 . Fabricators . | . . . Repair Stations 1 | . 1 . Recycling Units . | . . . Scanalyzers . | . . . Garrison Access . | . . . Total Hacks 26 | . 26 . Successful 13 | . 13 . Failed 13 | . 13 . Catastrophic 2 | . 2 . Database Lockouts . | . . . Manual 11 | . 11 . Terminals 25 | . 25 . Fabricators . | . . . Repair Stations 1 | . 1 . Recycling Units . | . . . Scanalyzers . | . . . Garrison Access . | . . . Terminal Hacks 13 | . 13 . Prototype ID Bank 6 | . 6 . Alert Level 3 | . 3 . Locate Traps 1 | . 1 . Dispatch Records 1 | . 1 . Hauler Manifests 1 | . 1 . Registered Components 1 | . 1 . Fabricator Hacks . | . . . Repair Station Hacks . | . . . Recycling Unit Hacks . | . . . Scanalyzer . | . . . Garrison Access Hacks . | . . . Unauthorized Hacks . | . . . Terminals . | . . . Fabricators . | . . . Repair Stations . | . . . Recycling Units . | . . . Scanalyzers . | . . . Garrison Access . | . . . Data Cores Recovered . | . . . Used . | . . . Hacking Detections 7 | . 7 . Full Trace Events 4 | . 4 . Feedback Events 1 | . 1 . Corruption 1 | . 1 . Feedback Blocked . | . . . Robot Schematics Acquired . | . . . Robots Built . | . . . Matter . | . . . Time . | . . . Total Robot Build Rating . | . . . Part Schematics Acquired . | . . . Parts Built . | . . . Matter . | . . . Time . | . . . Total Part Build Rating . | . . . Parts Repaired . | . . . Time . | . . . Parts Recycled . | . . . Recycled Matter . | . . . Retrieved Matter . | . . . Retrieved Components . | . . . Parts Scanalyzed . | . . . Part Schematics Acquired . | . . . Parts Damaged . | . . . Bothacking | -11 -10 -10 ------------ Run | Scr Mat Min Used RIF Installer . | . . . Robots Hacked . | . . . Non-combat . | . . . Combat . | . . . Robot Hacks Applied . | . . . Relay Couplers Released . | . . . Robots Rewired . | . . . Allies Hacked . | . . . Hacks Repelled . | . . . Allies | -11 -10 -10 -------- Run | Scr Mat Min Total Allies . | . . . Largest Group . | . . . Highest-Rated Group . | . . . Highest-Rated Ally . | . . . Total Orders . | . . . Ally Attacks . | . . . Total Damage . | . . . Kills . | . . . Allies Corrupted . | . . . Allies Melted . | . . . Intel | -11 -10 -10 ------- Run | Scr Mat Min Robot Analysis Total . | . . . Derelict Logs Recovered . | . . . Drone Launches . | . . . Drone Recoveries . | . . . Exploration | -11 -10 -10 ------------- Run | Scr Mat Min Turns Passed 1189 | 53 1034 102 Spaces Moved 880 | 23 725 132 Core . | . . . Treads 379 | 21 358 . Legs 2 | 2 . . Wheels . | . . . Hover 499 | . 367 132 Flight . | . . . Fastest Speed 56 | 120 56 56 Average Speed 101 | 156 107 56 Slowest Speed 160 | 160 160 56 Overloaded Moves . | . . . Propulsion Burnouts . | . . . Robots Hopped . | . . . Cave-ins Triggered . | . . . Exploration Rate (%) 40 | 2 96 23 Regions Visited 2 Branch Regions 1 Pre-discovered Areas . | . . . Known Exits Taken 1 | . 1 . Unknown Exits Taken 1 | 1 . . Scrap Searched 1 | . . 1 Spaces Dug . | . . . Terrain Destroyed 6 | . 6 . Melee . | . . . Projectile . | . . . AOE 6 | . 6 . Actions | -11 -10 -10 --------- Run | Scr Mat Min Total 1021 | 31 842 148 Wait 37 | . 30 7 Move 878 | 22 724 132 Hop . | . . . Pick Up 2 | 1 1 . Fast Attach 10 | 3 7 . Attach . | . . . Detach . | . . . Swap 1 | . 1 . Drop 8 | 1 7 . Fire 78 | 4 68 6 Melee . | . . . Ram . | . . . Kick . | . . . Crush 2 | . 2 . Escape Stasis . | . . . Rewire . | . . . Trap . | . . . Miscellaneous 5 | . 2 3 Route ------- -11/Scrapyard -10/Materials (discovered 4 exits: *Mat x3 / *Min) -10/Mines History --------- Turn | Location | Event 1 | -11/Scrapyard | Upgraded with Propulsion slot (x1) 1 | -11/Scrapyard | Upgraded with Weapon slot (x1) 1 | -11/Scrapyard | Discovered new exit (range 1) 54 | -11/Scrapyard | Entered Materials 210 | -10/Materials | Discovered new exit (range 16) 302 | -10/Materials | Build established: Mutant 332 | -10/Materials | Core integrity fell below 50% 744 | -10/Materials | Reached level 2 778 | -10/Materials | Discovered new exit (range 11) 868 | -10/Materials | Discovered new exit (range 7) 881 | -10/Materials | Identified exit to Mines 906 | -10/Materials | Core integrity fell below 20% 1027 | -10/Materials | Discovered new exit (range 5) 1030 | -10/Materials | Identified exit to Materials 1088 | -10/Materials | Entered Mines 1098 | -10/Mines | Assembled infested the area 1103 | -10/Mines | Assisted by a Guerilla fighting off Assembled 1190 | -10/Mines | Destroyed by D-53 Grenadier with Mini Grenade Launcher Last Messages --------------- 01090_ RX AJKTJO,8C7K#FOEA>CUFM%>2JWA4E&D#VJQ 01090_ Searching scrap... 01090_ Found 33 Matter. 01090_ Found Lrg. Matter Pod. 01098_ ALERT: Infestation in the mines, dispatching Demolisher response squad. 01103_ A derelict emerges from the shadows: "You need to get out of here! I've been tracking a group of Assembled to figure out where they're coming from, and they're closing on this area, come on!" 01105_ TU-KOA(h): "I'll hold them off! Go on ahead or try to find another way!" 01119_ R&I I9/I HRVC1|DQVWKQJ5LMMF 01122_ HV Slug penetrates as-14589. 01122_ as-14589 suffers critical hit. 01122_ as-14589 destroyed. 01126_ Used Protomatter to restore core integrity (+36, depleted) 01128_ Used Protomatter to restore core integrity (+21, depleted) 01168_ The unstable cave ceiling collapses. 01180_ as-11174 misfires. 01185_ as-11174 destroyed. Map ----- +----------------------------------------------------+ | ?????????????????????????????????????????????????? | | ?????????????????????????????????????????????????? | | ?????????????????????????????????????????????????? | | ?????????????????????????????????????????????????? | | ?????????????????????????????????????????????????? | | ?????????????????????????????????????????????????? | | ?????????????????????????????????????????????????? | | ???????????????????####??????????????????????????? | | ??#####???????????## ##?????????????????????????? | | ?## #####??????## #??????????????????? ?????? | | ?# #??????# #?????????????????? ???? | | ?# #??????# #????????????????## ???? | | ?# ##%!#??????# ##??????????###?# ??? | | ?# ## #?####### ###??????## # ??? | | ?## ### ### ##?????# ??? | | ??### ## ### #?????# #???? | | ????# #### #### #?????# ????? | | ????# ### #?# ##?????# ??????? | | ????# ## ### #?????## ????????? | | ????# ###???# ??????????? | | ???## % ;##### ????????????? | | ??## t ;;;#?# ?????????????? | | ??# ## ## t ### #?????????????? | | ??# ######### #" #?????????????? | | ??# ##??????# <## #?????????????? | | ??# ##?????## ##; @ # #?????????????? | | ?## ###????## ######## ####??????????? | | ## ##????# ##??????## d % #??????????? | | # #????# #????????# ### #??????????? | | # #????# #????????# # ##?# #??????????? | | # ##????# #????????#####?#?? ??????????? | | # ######?????# #?????????????????$ ?????????? | | ## ##??????????# #????????????????? ###????????? | | ?####???????????# #????????????????? #??????????? | | ????????????????? ?????????????????# #??????????? | | ????????????????? ????????????????? #??????????? | | ????????????????? ????????????????? ???????????? | | ??????????????????????????????????? ???????????? | | ??????????????????????????????????? ???????????? | | ??????????????????????????????????? ???????????? | | ?????????????????????????????????? #???????????? | | ?????????????????????????????????? #????????????? | | ??????????????????????????????????? ?????????????? | | ?????????????????????????????????????????????????? | | ?????????????????????????????????????????????????? | | ?????????????????????????????????????????????????? | | ?????????????????????????????????????????????????? | | ?????????????????????????????????????????????????? | | ?????????????????????????????????????????????????? | | ?????????????????????????????????????????????????? | +----------------------------------------------------+ Best States ------------- Heat Dissipation 55 Energy Generation 19 Energy Capacity 260 Matter Stores 300 Matter Capacity 300 Sight Range 16 Terrain Scan Density 10 Evasion (%) 53 Recoil Reduction 2 Item Schematics ----------------- None Robot Schematics ------------------ None Fabricated ------------ Nothing Alien Tech Used ----------------- None Achievements -------------- None Challenges ------------ None RPGLIKE | -11 -10 -10 --------- Run | Scr Mat Min Levels Raised 1 | . 1 . XP Earned 5370 | 3000 1870 500 XP Spent 2985 | 2985 . . Upgrades 14 | 14 . . Propulsion Slot 1 | 1 . . Weapon Slot 1 | 1 . . Core Integrity 2 | 2 . . Heat Dissipation 5 | 5 . . Energy Generation 1 | 1 . . Energy Storage 2 | 2 . . Inventory Capacity 2 | 2 . . Protomatter Created 124 | . 108 16 Integrity Restored 96 | . 39 57 Core 96 | . 39 57 Protomatter Decayed 105 | . 95 10 Game ------ Seed CloakShieldComputer Manual? 0 Play Time 00:12:04 Cumulative 75.8 hours Start 2019.12.17 @ 12:24:07 End 2019.12.17 @ 12:41:22 Sessions 1 Manual Loads 0 Difficulty Rogue Special Mode Winter2019/RPGLIKE Game No. 101 Rogue 101 Adventurer 0 Explorer 0 Win Type - Total 2 Types 2/0/0/0/0/0/0 Lore% 61 Gallery% 55 Achievement% 45 Wizard Run 0 Options --------- ASCII 0 Keyboard 0 Movement Mouse Keybinds 0 Fullscreen 2 Font 18/SmallcapsGlow Map View 76x50 Tactical HUD 1 Map Filters NONE Filters NONE Steam X RUN: ccf41821-6048-47b3-a9e3-da8bb2071fcf